{"text_format":"1","workbook":"xlsx","n_sheets":3,"sheets":["per Safley and Westerman","Graphic overview","Conversions"],"not_rendered":{"charts":2,"images":2,"macros":1,"external_links":0,"defined_names":205,"comments":0,"pivot_tables":0},"unopened":[],"bounds":{"document_bytes":16777216,"sheet_cells":100000,"rows_first":2000,"rows_last":500,"rows_between":2000,"halvings":0,"cell_chars":16384,"cell_head_chars":4096},"cells_cut":0,"cells_raw":0,"read":"whole","date_system":"1900"}

{"sheet":"per Safley and Westerman","index":0,"n_rows":51,"n_cols":18,"rows_kept":51,"cut":false,"hidden":false,"merged":[[35,16,35,17]]}
["Effect of temperature on biogas, at least according to one formula…"]
[]
[]
[null,"Equation from “Psychrophilic anaerobic digestion of animal manure: Proposed design methodology” by Safley and Westerman,"]
[null,"as quoted in  “Development of a Methane Conversion Factor to Estimate Emissions from Animal Waste Lagoons,” available on the EPA website.",null,null,null,null,null,null,null,null,null,null,null,null,null,"ref here"]
[]
[]
[]
[null,null,null,null,null,null,null,null,null,null,null,null,"David William House"]
[null,null,null,null,null,null,null,null,null,null,null,null,"(author of “The Complete Biogas Handbook”)"]
[null,null,null,null,null,null,null,null,null,null,null,null,"www.completebiogas.com"]
[null,null,null,null,null,null,null,null,null,null,null,null,"CompleteBiogas@gmail.com"]
[null,null,"LR2","=","Loading rate at temperature T2 (kg VS/m3) of reference digester"]
[null,null,"LR1","=","Loading rate at temperature T1 (kg VS/m3) of lower temp digester"]
[null,null,"T1","=","Temperature of digestion of the reference digester",null,null,null,null,null,null,null,"The “reference digester” is simply a digester at or near optimal temp,"]
[null,null,"T2","=","Temperature of the lower temp digester",null,null,null,null,null,null,null,"but of course the reference digesterʼs temp could also be selected "]
[null,null,"p","=","0.1, reported rate constant per °C-1",null,null,null,null,null,null,null,"to provide a different contrast. 13°C is boldfaced, below, because "]
[null,null,null,null,null,null,null,null,null,null,null,null,"that is a common ambient temp across the US."]
[]
[null,null,null,null,null,null,null,null,null,null,null,null,"“Loading rate” is a scientific measure of the amount of material fed "]
[null,null,null,null,null,null,null,null,null,null,null,null,"to a digester, per unit volume per day"]
[]
[null,null,"LR2","=","?","kg VS/m3","Solve for LR2"]
[null,null,"LR1","=",2,"kg VS/m3","(LR for silage, from “Biogas production from mono-digestion of maize” by Lebuhn et al)"]
[null,null,"T1","=",35,"°C",{"$f":"convTempCtoF(Temp1inC)","v":95},"°F","ref temp from initial reference"]
[null,null,"T2","=","(varies)"]
[null,null,"p","=",6.9290000000000004E-2,"(modified rate constant that gives the classic 50% drop for every 10°C drop in temp…)"]
[]
[null,"Since the loading rate is directly proportional to the gas production, the formula will provide a ratio that applies to either."]
[null,"(In other words, if the LR should be 25% of the reference digester, then the gas production will also be 25% of the ref digester.)"]
[null,"Therefore to achieve a comparable gas production, the size of the digester must increase by the reciprocal: i.e. @ 25% of the LR, "]
[null,"the digester vol would have to be 4x to achieve comparable gas production. Since LR is “per digester volume”, note that a 4x larger "]
[null,"digester with an LR of 25% would be fed the same amount of material as the reference (smaller) digester, which is operating "]
[null,"at the higher temperature."]
[]
[null,null,null,null,null,null,null,null,null,null,null,null,null,null,"Production",null,"Digester size"]
[null,"@",100,"°F",{"$f":"LoadRate1*(EXP(RateConstant*(convTempFtoC(C37)-Temp1inC)))","v":2.4244856596556277},"kg VS/m3",null,{"$f":"CONCATENATE(\"i.e., LR (or gas production) will be \",ROUND(E37/rateAt100degF*100,2),\"% at \",C37,\"°F (\",ROUND(convTempFtoC(C37),1),\"°C)\")","v":"i.e., LR (or gas production) will be 100% at 100°F (37.8°C)"},null,null,null,null,null,null,{"$f":"rateAt100degF/rateAt100degF","v":1},null,{"$f":"ROUND(rateAt100degF/rateAt100degF,2)","v":1}]
[null,"@",90,"°F",{"$f":"LoadRate1*(EXP(RateConstant*(convTempFtoC(C38)-Temp1inC)))","v":1.6498344645058274},"kg VS/m3",null,{"$f":"CONCATENATE(\"i.e., LR (or gas production) will be \",ROUND(E38/rateAt100degF*100,2),\"% at \",C38,\"°F (\",ROUND(convTempFtoC(C38),1),\"°C)\")","v":"i.e., LR (or gas production) will be 68.05% at 90°F (32.2°C)"},null,null,null,null,null,null,{"$f":"E38/rateAt100degF","v":0.68048844006780751},null,{"$f":"ROUND(rateAt100degF/E38,2)","v":1.47},{"$f":"CONCATENATE(ROUND(Q38*1,1),\"x larger\")","v":"1.5x larger"}]
[null,"@",80,"°F",{"$f":"LoadRate1*(EXP(RateConstant*(convTempFtoC(C39)-Temp1inC)))","v":1.1226932811216772},"kg VS/m3",null,{"$f":"CONCATENATE(\"i.e., LR (or gas production) will be \",ROUND(E39/rateAt100degF*100,2),\"% at \",C39,\"°F (\",ROUND(convTempFtoC(C39),1),\"°C)\")","v":"i.e., LR (or gas production) will be 46.31% at 80°F (26.7°C)"},null,null,null,null,null,null,{"$f":"E39/rateAt100degF","v":0.46306451706591817},null,{"$f":"ROUND(rateAt100degF/E39,2)","v":2.16},{"$f":"CONCATENATE(ROUND(Q39*1,1),\"x larger\")","v":"2.2x larger"}]
[null,"@",70,"°F",{"$f":"LoadRate1*(EXP(RateConstant*(convTempFtoC(C40)-Temp1inC)))","v":0.76397979954509887},"kg VS/m3",null,{"$f":"CONCATENATE(\"i.e., LR (or gas production) will be \",ROUND(E40/rateAt100degF*100,2),\"% at \",C40,\"°F (\",ROUND(convTempFtoC(C40),1),\"°C)\")","v":"i.e., LR (or gas production) will be 31.51% at 70°F (21.1°C)"},null,null,null,null,null,null,{"$f":"E40/rateAt100degF","v":0.3151100508689394},null,{"$f":"ROUND(rateAt100degF/E40,2)","v":3.17},"3.2x larger"]
[null,"@",60,"°F",{"$f":"LoadRate1*(EXP(RateConstant*(convTempFtoC(C41)-Temp1inC)))","v":0.51987942203576087},"kg VS/m3",null,{"$f":"CONCATENATE(\"i.e., LR (or gas production) will be \",ROUND(E41/rateAt100degF*100,2),\"% at \",C41,\"°F (\",ROUND(convTempFtoC(C41),1),\"°C)\")","v":"i.e., LR (or gas production) will be 21.44% at 60°F (15.6°C)"},null,null,null,null,null,null,{"$f":"E41/rateAt100degF","v":0.21442874696549213},null,{"$f":"ROUND(rateAt100degF/E41,2)","v":4.66},"4.7x larger"]
[null,"@",50,"°F",{"$f":"LoadRate1*(EXP(RateConstant*(convTempFtoC(C42)-Temp1inC)))","v":0.35377193692446834},"kg VS/m3",null,{"$f":"CONCATENATE(\"i.e., LR (or gas production) will be \",ROUND(E42/rateAt100degF*100,2),\"% at \",C42,\"°F (\",ROUND(convTempFtoC(C42),1),\"°C)\")","v":"i.e., LR (or gas production) will be 14.59% at 50°F (10°C)"},null,null,null,null,null,null,{"$f":"E42/rateAt100degF","v":0.14591628352824237},null,{"$f":"ROUND(rateAt100degF/E42,2)","v":6.85},"6.9x larger"]
[null,"@",40,"°F",{"$f":"LoadRate1*(EXP(RateConstant*(convTempFtoC(C43)-Temp1inC)))","v":0.24073771349749823},"kg VS/m3",null,{"$f":"CONCATENATE(\"i.e., LR (or gas production) will be \",ROUND(E43/rateAt100degF*100,2),\"% at \",C43,\"°F (\",ROUND(convTempFtoC(C43),1),\"°C)\")","v":"i.e., LR (or gas production) will be 9.93% at 40°F (4.4°C)"},null,null,null,null,null,null,{"$f":"E43/rateAt100degF","v":9.9294344158625564E-2},null,{"$f":"ROUND(rateAt100degF/E43,2)","v":10.07},"10.1x larger"]
[]
[null,"@",38,"°C",{"$f":"LoadRate1*(EXP(RateConstant*(C45-Temp1inC)))","v":2.4621062444802537},"kg VS/m3",null,{"$f":"CONCATENATE(\"i.e., LR (or gas production) will be \",ROUND(E45/rateAt100degF*100,2),\"% at \",C45,\"°C (\",convTempCtoF(C45),\"°F)\")","v":"i.e., LR (or gas production) will be 101.55% at 38°C (100.4°F)"},null,null,null,null,null,null,{"$f":"rateAt100degF/rateAt100degF","v":1},null,{"$f":"ROUND(rateAt100degF/rateAt100degF,2)","v":1}]
[null,"@",35,"°C",2,"kg VS/m3",null,{"$f":"CONCATENATE(\"i.e., LR (or gas production) will be \",ROUND(E46/rateAt100degF*100,0),\"% at \",C46,\"°C (\",convTempCtoF(C46),\"°F)\")","v":"i.e., LR (or gas production) will be 82% at 35°C (95°F)"},null,null,null,null,null,null,{"$f":"E46/rateAt100degF","v":0.82491723225291369},null,{"$f":"ROUND(rateAt100degF/E46,2)","v":1.21},{"$f":"CONCATENATE(ROUND(Q46*1,1),\"x larger\")","v":"1.2x larger"}]
[null,"@",30,"°C",1.4143883562243977,"kg VS/m3",null,{"$f":"CONCATENATE(\"i.e., LR (or gas production) will be \",ROUND(E47/rateAt100degF*100,0),\"% at \",C47,\"°C (\",convTempCtoF(C47),\"°F)\")","v":"i.e., LR (or gas production) will be 58% at 30°C (86°F)"},null,null,null,null,null,null,{"$f":"E47/rateAt100degF","v":0.58337666407368916},null,{"$f":"ROUND(rateAt100degF/E47,2)","v":1.71},"1.7x larger"]
[null,"@",25,"°C",1.000247211111577,"kg VS/m3",null,{"$f":"CONCATENATE(\"i.e., LR (or gas production) will be \",ROUND(E48/rateAt100degF*100,0),\"% at \",C48,\"°C (\",convTempCtoF(C48),\"°F)\")","v":"i.e., LR (or gas production) will be 41% at 25°C (77°F)"},null,null,null,null,null,null,{"$f":"E48/rateAt100degF","v":0.41256058047942895},null,{"$f":"ROUND(rateAt100degF/E48,2)","v":2.42},"2.4x larger"]
[null,"@",20,"°C",0.70736900437107098,"kg VS/m3",null,{"$f":"CONCATENATE(\"i.e., LR (or gas production) will be \",ROUND(E49/rateAt100degF*100,0),\"% at \",C49,\"°C (\",convTempCtoF(C49),\"°F)\")","v":"i.e., LR (or gas production) will be 29% at 20°C (68°F)"},null,null,null,null,null,null,{"$f":"E49/rateAt100degF","v":0.29176044063364154},null,{"$f":"ROUND(rateAt100degF/E49,2)","v":3.43},"3.4x larger"]
[null,"@",15,"°C",0.50024724166824386,"kg VS/m3",null,{"$f":"CONCATENATE(\"i.e., LR (or gas production) will be \",ROUND(E50/rateAt100degF*100,0),\"% at \",C50,\"°C (\",convTempCtoF(C50),\"°F)\")","v":"i.e., LR (or gas production) will be 21% at 15°C (59°F)"},null,null,null,null,null,null,{"$f":"E50/rateAt100degF","v":0.20633128501956108},null,{"$f":"ROUND(rateAt100degF/E50,2)","v":4.8499999999999996},"4.9x larger"]
[null,"@",10,"°C",0.35377193692446834,"kg VS/m3",null,{"$f":"CONCATENATE(\"i.e., LR (or gas production) will be \",ROUND(E51/rateAt100degF*100,0),\"% at \",C51,\"°C (\",convTempCtoF(C51),\"°F)\")","v":"i.e., LR (or gas production) will be 15% at 10°C (50°F)"},null,null,null,null,null,null,{"$f":"E51/rateAt100degF","v":0.14591628352824237},null,{"$f":"ROUND(rateAt100degF/E51,2)","v":6.85},"6.9x larger"]

{"sheet":"Graphic overview","index":1,"n_rows":19,"n_cols":9,"rows_kept":19,"cut":false,"hidden":false,"merged":[]}
["Graphic overview, results of the formula"]
[]
[]
[null,null,"°C","°F",null,null,"ref HRT",136,"days"]
[null,null,10,{"$f":"convTempCtoF(C5)","v":50},null,{"$f":"LoadRate1*(EXP(RateConstant*(C5-Temp1inC)))","v":0.35377193692446834},1,{"$f":"$H$4*G5","v":136},{"$f":"HRTat20DegC/H5","v":0.14368670633835665}]
[null,null,{"$f":"C5+2","v":12},53.6,null,0.40635715277497719,{"$f":"$F$5/F6","v":0.870593600995063},{"$f":"$H$4*G6","v":118.40072973532857},0.16504452384456644]
[null,null,{"$f":"C6+2","v":14},57.2,null,0.46675871762728671,{"$f":"$F$5/F7","v":0.75793321809355074},103.07891766072291,0.18957700086001714]
[null,null,16,60.8,null,0.53613846586259672,0.65985180965384072,89.739846112922336,0.21775602375590195]
[null,null,18,64.400000000000006,null,0.61583092874770295,0.57446276308964594,78.126935780191843,0.25012362083412198]
[null,null,20,68,null,0.70736900437107098,0.5001236055557885,68.016810355587239,0.28730238833393451]
[null,null,22,71.599999999999994,null,0.81251344319848995,0.43540441070344843,59.214999855668985,0.33000746617659066]
[null,null,24,75.2,null,0.93328671640798999,0.37906029380344841,51.552199957268982,0.37906029380344841]
[null,null,26,78.800000000000011,null,1.0720119184672052,0.33000746617659071,44.881015400016338,0.43540441070344832]
[null,null,28,82.4,null,1.2313574522508863,0.28730238833393451,39.073124813415092,0.5001236055557885]
[null,null,30,86,null,1.4143883562243977,0.25012362083412198,34.016812433440592,0.57446276308964583]
[null,null,32,89.6,null,1.6246252609803169,0.21775602375590197,29.614819230802667,0.65985180965384072]
[null,null,34,93.2,null,1.8661121091671453,0.18957700086001716,25.782472116962335,0.75793321809355063]
[null,null,36,96.8,null,2.1434939414144947,0.16504452384456647,22.446055242861039,0.87059360099506289]
[null,null,38,100.4,null,2.4621062444802537,0.14368670633835665,19.541392062016502,1]

{"sheet":"Conversions","index":2,"n_rows":240,"n_cols":6,"rows_kept":240,"cut":false,"hidden":false,"merged":[]}
["Conversions"]
["cnv"]
[]
[null,"Length/Distance"]
[null,null,"Conversion","cellName","conv#","Units"]
[null,null,"mm (to mil)","mmToMil",39.369999999999997,"mil"]
[null,null,"cm (to in)","cmToIn",0.39370078740157477,"in"]
[null,null,"m (to ft)","mToFt",3.2808398950000002,"ft"]
[null,null,"km (to mi)","kmToMi",0.62137119224000004,"mi"]
[null,null,"mil (to mm)","milToMm",2.5400050800101603E-2,"mm"]
[null,null,"in (to cm)","inToCm",2.54,"cm"]
[null,null,"in (to ft)","inToFt",8.3333333333333329E-2,"ft"]
[null,null,"ft (to yd)","ftToYd",0.33333333333333331,"yd"]
[null,null,"ft (to m)","ftToM",0.30480000000000002,"m"]
[null,null,"ft (to mi)","ftToMi",1.893939E-4,"mi"]
[null,null,"mi (to km)","miToKm",1.6093440000000001,"km"]
[]
[null,"Area"]
[null,null,"Conversion","cellName","conv#","Units"]
[null,null,"cm2 (to in2)","cmSqToInSq",0.15500031000062001,"in2"]
[null,null,"m2 (to ft2)","mSqToFtSq",10.76391042,"ft2"]
[null,null,"m2 (to ha)","mSqToHa",1E-4,"ha"]
[null,null,"km2 (to ha)","kmSqToHa",100,"ha"]
[null,null,"km2 (to acre)","kmSqToAcre",247.10538147,"acre"]
[null,null,"km2 (to mi2)","kmSqToMiSq",0.38610215799999997,"mi2"]
[null,null,"ha (to acre)","haToAcre",2.4710538161371201,"acre"]
[null,null,"ha (to ft2)","haToFtSq",107639.1042,"ft2"]
[null,null,"in2 (to cm2)","inSqToCmSq",6.4516,"cm2"]
[null,null,"in2 (to ft2)","inSqToFtSq",6.9444440000000001E-3,"ft2"]
[null,null,"ft2 (to in2)","ftSqToInSq",144,"in2"]
[null,null,"ft2 (to m2)","ftSqToMSq",9.2903040000000006E-2,"m2"]
[null,null,"ft2 (to yd2)","ftSqToYdSq",0.1111111,"yd2"]
[null,null,"ft2 (to mi2)","ftSqToMiSq",3.5870064279155203E-8,"mi2"]
[null,null,"ft2 (to acre)","ftSqToAcre",2.2956841138659299E-5,"acre"]
[null,null,"ft2 (to ha)","ftSqToHa",9.2903040000000008E-6,"ha"]
[null,null,"mi2 (to ft2)","miSqToFtSq",27878400,"ft2"]
[null,null,"mi2 (to km2)","miSqToKmSq",2.5899881100000002,"km2"]
[null,null,"acre (to ft2)","acreToFtSq",43560,"ft2"]
[null,null,"acre (to ha)","acreToHa",0.40468564200000001,"ha"]
[null,null,"acre (to km2)","acreToKmSq",4.0468559999999997E-3,"km2"]
[null,null,"acre (to mi2)","acreToMiSq",1.5625000000000001E-3,"mi2"]
[]
[null,"Mass"]
[null,null,"Conversion","cellName","conv#","Units"]
[null,null,"gm (to oz)","gmToOz",3.5273961950000002E-2,"oz"]
[null,null,"gm (to lb)","gmToLb",2.2046226218000002E-3,"lb"]
[null,null,"kg (to oz)","kgToOz",35.27396195,"oz"]
[null,null,"kg (to lb)","kgToLb",2.2046226218,"lb"]
[null,null,"kg (to slug)","kgToSlug",14.593902937206364,"slug"]
[null,null,"kg (to ton)","kgToTon",1.1023113109243901E-3,"ton"]
[null,null,"tonne (to lb)","tonneToLb",2204.6226218000002,"lb"]
[null,null,"tonne (to ton)","tonneToTon",1.1023113109,"ton"]
[null,null,"oz (to gm)","ozToGm",28.349523125000001,"gm"]
[null,null,"oz (to lb)","ozToLb",6.25E-2,"lb"]
[null,null,"oz (to kg)","ozToKg",2.8349523125000001E-2,"kg"]
[null,null,"lb (to gm)","lbToGm",453.59237000000002,"gm"]
[null,null,"lb (to oz)","lbToOz",16,"oz"]
[null,null,"lb (to kg)","lbToKg",0.45359237000000002,"kg"]
[null,null,"lb (to slug)","lbToSlug",3.1080950171567253E-2,"slug"]
[null,null,"lb (to ton)","lbToTon",5.0000000000000001E-4,"ton"]
[null,null,"lb (to tonne)","lbToTonne",4.5359236999999999E-4,"tonne"]
[null,null,"slug (to kg)","slugToKg",6.8521765856791761E-2,"kg"]
[null,null,"slug (to lb)","slugToLb",32.174048556430449,"lb"]
[null,null,"ton (to lb)","tonToLb",2000,"lb"]
[null,null,"ton (to kg)","tonToKg",907.18470000000002,"kg"]
[null,null,"ton (to tonne)","tonToTonne",0.90718474000000004,"tonne"]
[]
[null,"Volume"]
[null,null,"Conversion","cellName","conv#","Units"]
[null,null,"cm3 (to ml)","cmCuToMl",1,"ml"]
[null,null,"cm3 (to m3)","cmCuToMCu",9.9999999999999995E-7,"m3"]
[null,null,"cm3 (to in3)","cmCuToInCu",6.1023744094999999E-2,"in3"]
[null,null,"cm3 (to fl oz)","cmCuToFlOz",3.3814022701E-2,"fl oz"]
[null,null,"l (to m3)","lToMCu",1E-3,"m3"]
[null,null,"l (to in3)","lToInCu",61.023744094732301,"in3"]
[null,null,"l (to fl oz)","lToFlOz",33.814022701271298,"fl oz"]
[null,null,"l (to ft3)","lToFtCu",3.5314666720999997E-2,"ft3"]
[null,null,"m3 (to cm3)","mCuToCmCu",1000000,"cm3"]
[null,null,"m3 (to in3)","mCuToInCu",61023.744094731999,"in3"]
[null,null,"m3 (to ft3)","mCuToFtCu",35.314666721000002,"ft3"]
[null,null,"m3 (to gal)","mCuToGal",264.17205235799997,"gal"]
[null,null,"m3 (to yd3)","mCuToYdCu",1.3079506190000001,"yd3"]
[null,null,"in3 (to cm3)","inCuToCmCu",16.387063999999999,"cm3"]
[null,null,"in3 (to fl oz)","inCuToFlOz",0.55411255410000004,"fl oz"]
[null,null,"in3 (to ft3)","inCuToFtCu",5.78703703703704E-4,"ft3"]
[null,null,"in3 (to gal)","inCuToGal",4.32900432886E-3,"gal"]
[null,null,"fl oz (to cm3)","flOzToCmCu",29.573529563000001,"cm3"]
[null,null,"fl oz (to in3)","flOzToInCu",1.8046875,"in3"]
[null,null,"fl oz (to ft3)","flOzToFtCu",1.044379E-3,"ft3"]
[null,null,"fl oz (to gal)","flOzToGal",7.8125E-3,"gal"]
[null,null,"ft3 (to cm3)","ftCuToCmCu",28316.846592000002,"cm3"]
[null,null,"ft3 (to l)","ftCuToL",28.316846592000001,"l"]
[null,null,"ft3 (to m3)","ftCuToMCu",2.8316846999999999E-2,"m3"]
[null,null,"ft3 (to in3)","ftCuToInCu",1728,"in3"]
[null,null,"ft3 (to gal)","ftCuToGal",7.4805194805194999,"gal"]
[null,null,"ft3 (to bu)","ftCuToBu",0.80356395488629395,"bu"]
[null,null,"ft3 (to yd3)","ftCuToYdCu",3.703704E-2,"yd3"]
[null,null,"ft3 (to l)","ftCuToL",28.316849999999999,"l"]
[null,null,"ft3 (to m3)","ftCuToMCu",2.8316850000000001E-2,"m3"]
[null,null,"gal (to fl oz)","galToFlOz",128,"fl oz"]
[null,null,"gal (to l)","galToL",0.26417205235380598,"l"]
[null,null,"gal (to ft3)","galToFtCu",0.133680555555556,"ft3"]
[null,null,"gal (to m3)","galToMCu",3.7854117840000001E-3,"m3"]
[null,null,"yd3 (to ft3)","ydCuToftCu",26.999997840000173,"ft3"]
[]
[null,"Energy units"]
[null,null,"Conversion","cellName","conv#","Units"]
[null,null,"kCal (to BTU)","kCalToBtu",3.9683205411000002,"BTU"]
[null,null,"kCal (to joules)","kCalToJoules",4186.8,"joules"]
[null,null,"joules (to kCal)","joulesToKcal",2.3884589662750001E-4,"kCal"]
[null,null,"joules (to KwH)","joulesToKwh",2.777778E-7,"KwH"]
[null,null,"joules (to BTU)","joulesToBtu",9.4781710000000003E-4,"BTU"]
[null,null,"joules (to therm)","joulesToTherm",9.4781340000000003E-9,"therm"]
[null,null,"kCal (to Kwh)","kCalToKwh",1.163E-3,"Kwh"]
[null,null,"kCal (to therm)","kCalToTherm",3.9692682242000001E-5,"therm"]
[null,null,"BTU (to kCal)","btuToKcal",0.25199577242999999,"kCal"]
[null,null,"BTU (to Kwh)","btuToKwh",2.9307108333000002E-4,"Kwh"]
[null,null,"BTU (to therm)","btuToTherm",1.0002388121E-5,"therm"]
[null,null,"Kwh (to kCal)","kwhToKcal",859.84522786000002,"kCal"]
[null,null,"Kwh (to BTU)","kwhToBtu",3412.1414798999999,"BTU"]
[null,null,"Kwh (to therm)","kwhToTherm",3.4121279999999997E-2,"therm"]
[null,null,"therm (to kCal)","thermToKcal",25193.5607148733,"kCal"]
[null,null,"therm (to BTU)","thermToBtu",99976.124491759998,"BTU"]
[null,null,"therm (to Kwh)","thermToKwh",29.300111111,"Kwh"]
[]
[null,"Power"]
[null,null,"Conversion","cellName","conv#","Units"]
[null,null,"kW (to kCal/sec)","kWToKcalPerSec",0.23884589663,"kCal/sec"]
[null,null,"kW (to BTU/sec)","kWToBtuPerSec",0.94781712087000003,"BTU/sec"]
[null,null,"kW (to HP)","kWToHp",1.3410220924,"HP"]
[null,null,"kCal/sec (to kW)","kCalPerSecToKw",4.1867999999999999,"kW"]
[null,null,"kCal/sec (to HP)","kCalPerSecToHp",5.6145912965999996,"HP"]
[null,null,"BTU/sec (to kW)","btuPerSecToKw",1.055055852,"kW"]
[null,null,"BTU/sec (to HP)","btuPerSecToHp",1.4148532063000001,"HP"]
[null,null,"HP (to kW)","hpToKw",0.74569987000000004,"kW"]
[null,null,"HP (to kCal/sec)","hpToKcalPerSec",0.17810735407,"kCal/sec"]
[null,null,"HP (to BTU/sec)","hpToBtuPerSec",0.70678710381999998,"BTU/sec"]
[]
[null,"Acceleration"]
[null,null,"Conversion","cellName","conv#","Units"]
[null,null,"m sec-2 (to ft sec-2)","mPerSecSqToFtPerSecSq",0,"ft sec-2"]
[null,null,"ft sec-2 (to m sec-2)","ftPerSecSqToMPerSecSq",0,"m sec-2"]
[]
[null,"Energy Density (chk*)"]
[null,null,"Conversion","cellName","conv#","Units"]
[null,null,"cal l-1 (to kCal m-3)","calPerLToKcalPerMCu",1E-3,"kCal m-3"]
[null,null,"cal l-1 (to joules m-3)","calPerLToJoulesPerMCu",4184,"joules m-3"]
[null,null,"kCal l-1 (to joules m-3)","kCalPerLToJoulesPerMCu",4184000,"joules m-3"]
[null,null,"kCal l-1 (to BTU ft-3)","kCalPerLToBtuPerFtCu",112.29517930599999,"BTU ft-3"]
[null,null,"kCal l-1 (to BTU gal-1)","kCalPerLToBtuPerGal",15.01168195,"BTU gal-1"]
[null,null,"kCal m-3 (to BTU ft-3)","kCalPerMCuToBtuPerFtCu",0.112295179305963,"BTU ft-3"]
[null,null,"kCal m-3 (to BTU gal-1)","kCalPerMCuToBtuPerGal",1.5011681949708399E-2,"BTU gal-1"]
[null,null,"joules l-1 (to kCal m-3)","joulesPerLToKcalPerMCu",0.239005736,"kCal m-3"]
[null,null,"joules l-1 (to BTU ft-3)","joulesPerLToBtuPerFtCu",2.68571599491551E-2,"BTU ft-3"]
[null,null,"joules l-1 (to BTU gal-1)","joulesPerLToBtuPerGal",3.5878773723644502E-3,"BTU gal-1"]
[null,null,"joules l-1 (to therm ft-3)","joulesPerLToThermPerFtCu",3.3471714335160999E-10,"therm ft-3"]
[null,null,"BTU ft-3 (to kCal l-1)","btuPerFtCuToKcalPerL",8.9051017699999999E-3,"kCal l-1"]
[null,null,"BTU ft-3 (to kCal m-3)","btuPerFtCuToKcalPerMCu",8.9051017699999999,"kCal m-3"]
[null,null,"BTU ft-3 (to joules m-3)","btuPerFtCuToJoulesPerMCu",37258.945807831296,"joules m-3"]
[null,null,"therm ft-3 (to kCal m-3)","thermPerFtCuToKcalPerMCu",889702.20017333794,"kCal m-3"]
[null,null,"therm ft-3 (to joules m-3)","thermPerFtCuToJoulesPerMCu",3725005171.64923,"joules m-3"]
[null,null,"therm ft-3 (to BTU gal-1)","thermPerFtCuToBtuPerGal",13368.055555590399,"BTU gal-1"]
[]
[null,"Density"]
[null,null,"Conversion","cellName","conv#","Units"]
[null,null,"gm/cm3 (to kg/m3)","gmPerCmCuToKgPerMCu",1000,"kg/m3"]
[null,null,"kg/l (to lb/ft3)","kgPerLToLbPerFtCu",62.427960575627203,"lb/ft3"]
[null,null,"kg/m3 (to lb/in3)","kgPerMCuToLbPerInCu",3.6127292E-5,"lb/in3"]
[null,null,"kg/m3 (to lb/ft3)","kgPerMCuToLbPerftCu",6.2427960576000002E-2,"lb/ft3"]
[null,null,"kg/m3 (to lb/gal)","kgPerMCuToLbPerGal",8.3454044520000006E-3,"lb/gal"]
[null,null,"kg/m3 (to SpGrav (specific gravity))","kgPerMCuToSpGrav",1E-3,"SpGrav (specific gravity)"]
[null,null,"lb/ft3 (to kg/m3)","lbPerInCuToKgPerMCu",16.018463373960099,"kg/m3"]
[null,null,"lb/ft3 (to oz/in3)","lbPerFtCuToOzPerInCu",9.2592592592592605E-3,"oz/in3"]
[null,null,"lb/ft3 (to SpGrav)","lbPerFtCuToSpGrav",62.427183560000003,"SpGrav"]
[null,null,"SpGrav (to gm/cm3)","spGravToGmPerCmCu",1,"gm/cm3"]
[null,null,"SpGrav (to kg/m3)","spGravToKgPerMCu",1000,"kg/m3"]
[null,null,"SpGrav (to oz/in3)","spGravToOzPerInCu",0.57802947740739996,"oz/in3"]
[null,null,"SpGrav (to lb/ft3)","spGravToLbPerFtCu",1.6018662751920001E-2,"lb/ft3"]
[null,null,"SpGrav (to lb/gal)","spGravToLbPerGal",8.3453005800909992,"lb/gal"]
[]
[null,"Pressure"]
[null,null,"Conversion","cellName","conv#","Units"]
[null,null,"atm (to bar)","atmToBar",1.01325,"bar"]
[null,null,"atm (to mm Hg)","atmToMmHg",760.00210017851998,"mm Hg"]
[null,null,"atm (to cm H2O)","atmToCmH2o",1033.22755476679,"cm H2O"]
[null,null,"atm (to cm H2O)","atmToFtH2o",33.898542050866702,"cm H2O"]
[null,null,"atm (to MPascal)","atmToMpascal",0.10132500999999999,"MPascal"]
[null,null,"atm (to psi)","atmToPsi",14.6959502543,"psi"]
[null,null,"bar (to atm)","barToAtm",0.98692326671601005,"atm"]
[null,null,"bar (to mm Hg)","barToMmHg",750.06375541921,"mm Hg"]
[null,null,"bar (to cm H2O)","barToCmH2o",1019.716213,"cm H2O"]
[null,null,"bar (to psi)","barToPsi",14.503773773022001,"psi"]
[null,null,"MPascal (to atm)","mPascalToAtm",9.8692316930999997,"atm"]
[null,null,"MPascal (to psi)","mPascalToPsi",145.03773773021999,"psi"]
[null,null,"mm Hg (to atm)","mmHgToAtm",1.3157858376511E-3,"atm"]
[null,null,"mm Hg (to cm H2O)","mmHgToCmH2o",1.3595060468770099,"cm H2O"]
[null,null,"cm H2O (to atm)","cmH2oToAtm",9.6784100984000001E-4,"atm"]
[null,null,"cm H2O (to bar)","cmH2oToBar",9.8066499999999992E-4,"bar"]
[null,null,"psi (to atm)","psiToAtm",6.8045957064000004E-2,"atm"]
[null,null,"psi (to bar)","psiToBar",6.8947572799999995E-2,"bar"]
[null,null,"bar (to mm Hg)","barToMmHg",51.714924101999998,"mm Hg"]
[null,null,"psi (to cm H2O)","psiToCmH2o",70.306957830000002,"cm H2O"]
[null,null,"psi (to MPascal)","psiToMpascal",6.8947572931679999E-3,"MPascal"]
[]
[null,"Heat Transfer Coefficient"]
[null,null,"Conversion","cellName","conv#","Units"]
[null,null,"kCal hr-1 m-2 ºC (to BTU hr-1 ft-2 ºF)","kCalPerHrPerMSqDegCToBtuPerHrPerFtSqDegF",0.20467916890085799,"BTU hr-1 ft-2 ºF"]
[null,null,"BTU hr-1 ft-2 ºF (to kCal hr-1 m-2 ºC)","btuPerHrPerFtSqDegFToKcalPerHrPerMSqDegC",4.885695041,"kCal hr-1 m-2 ºC"]
[]
[null,"Gas Production (chk*)"]
[null,null,"Conversion","cellName","conv#","Units"]
[null,null,"l gm-1 (to ft3 lb-1)","lPerGmToFtCuPerLb",16.018462495429102,"ft3 lb-1"]
[null,null,"l gm-1 (to m3 kg-1)","lPerGmToMCuPerKg",1,"m3 kg-1"]
[null,null,"l gm-1 (to m3 t-1)","lPerGmToMCuPerTonne",1000,"m3 t-1"]
[null,null,"l kg-1 (to ft3 lb-1)","lPerKgToFtCuPerLb",1.6018462495429101E-2,"ft3 lb-1"]
[null,null,"l kg-1 (to m3 t-1)","lPerKgToMCuPerTonne",1,"m3 t-1"]
[null,null,"m3 kg-1 (to ft3 lb-1)","mCuPerKgTo",16.018462495429102,"ft3 lb-1"]
[null,null,"m3 kg-1 (to m3 t-1)","mCuPerKgToMCuPerTonne",1E-3,"m3 t-1"]
[null,null,"ft3 lb-1 (to yd3 ton-1)","ftCuPerLbToYdCuPerTon",74.074079999999995,"yd3 ton-1"]
[null,null,"ft3 lb-1 (to l gm-1)","ftCuPerLbToLPerGm",6.2427960576144997E-2,"l gm-1"]
[null,null,"ft3 lb-1 (to l kg-1)","ftCuPerLbToLPerKg",62.427960576144997,"l kg-1"]
[null,null,"ft3 lb-1 (to m3 kg-1)","ftCuPerLbToMCuPerKg",6.2427960576144997E-2,"m3 kg-1"]
[null,null,"ft3 lb-1 (to m3 t-1)","ftCuPerLbToMCuPerTonne",62.427960576144997,"m3 t-1"]
[null,null,"yd3 ton-1 (to ft3 lb-1)","ydCuPerLbToFtCuPerLb",1.35E-2,"ft3 lb-1"]
[null,null,"yd3 ton-1 (to m3 t-1)","ydCuPerLbToMCuPerTonne",0.84277746799999997,"m3 t-1"]
[]
[null,"Flow Rate"]
[null,null,"Conversion","cellName","conv#","Units"]
[null,null,"l/sec (to m3/hr)","lPerSecToMCuPerHr",3.6,"m3/hr"]
[null,null,"l/sec (to ft3/sec)","lPerSecToFtCuPerSec",3.5314666720999997E-2,"ft3/sec"]
[null,null,"l/sec (to gal/sec)","lPerSecToGalPerSec",0.26417205235448998,"gal/sec"]
[null,null,"m3/hr (to l/sec)","mCuPerHrToLPerSec",0.27777777777777801,"l/sec"]
[null,null,"m3/hr (to ft3/sec)","mCuPerHrToFtCuPerSec",9.8096296399999994E-3,"ft3/sec"]
[null,null,"m3/hr (to gal/sec)","mCuPerHrToGalPerSec",7.3381125699999994E-2,"gal/sec"]
[null,null,"ft3/sec (to l/sec)","ftCuPerSecToLPerSec",28.316846600000002,"l/sec"]
[null,null,"ft3/sec (to m3/hr)","ftCuPerSecToMCuPerHr",101.940648,"m3/hr"]
[null,null,"ft3/sec (to gal/sec)","ftCuPerSecToGalPerSec",7.480519481,"gal/sec"]
[null,null,"gal/sec (to l/sec)","galPerSecToLPerSec",3.78541178,"l/sec"]
[null,null,"gal/sec (to m3/hr)","galPerSecToMCuPerHr",13.6274824,"m3/hr"]
[null,null,"gal sec-1 (to ft3 sec-1)","galPerSecToFtCuPerSec",0.13368055600000001,"ft3 sec-1"]